Workbook

Sheet 所得税
B1: 給与所得の源泉徴収税額表（平成26年分）
B2: 月 額 表（平成24年３月31日財務省告示第115号別表第一）
B3: その月の社会保 | D3: 甲
B4: 険料等控除後の | D4: 扶 養 親 族 等 の 数 | L4: 乙
B5: 給与等の金額 | D5: 0 人 | E5: 1 人 | F5: 2 人 | G5: 3 人 | H5: 4 人 | I5: 5 人 | J5: 6 人 | K5: 7 人
B6: 以 上 | C6: 未 満 | D6: 税 額 | L6: 税 額
B7: 円 | C7: 円 | D7: 円 | E7: 円 | F7: 円 | G7: 円 | H7: 円 | I7: 円 | J7: 円 | K7: 円 | L7: 円
B8: 88000 | C8: 円未満 | D8: 0 | E8: 0 | F8: 0 | G8: 0 | H8: 0 | I8: 0 | J8: 0 | K8: 0 | L8: その月の社会保険料等控除後の給与等の金額の3.063％に相当する金額
A10: 1 | B10: 88000 | C10: 89000 | D10: 130 | E10: 0 | F10: 0 | G10: 0 | H10: 0 | I10: 0 | J10: 0 | K10: 0 | L10: 3200
A11: 2 | B11: 89000 | C11: 90000 | D11: 180 | E11: 0 | F11: 0 | G11: 0 | H11: 0 | I11: 0 | J11: 0 | K11: 0 | L11: 3200
A12: 3 | B12: 90000 | C12: 91000 | D12: 230 | E12: 0 | F12: 0 | G12: 0 | H12: 0 | I12: 0 | J12: 0 | K12: 0 | L12: 3200
A13: 4 | B13: 91000 | C13: 92000 | D13: 290 | E13: 0 | F13: 0 | G13: 0 | H13: 0 | I13: 0 | J13: 0 | K13: 0 | L13: 3200
A14: 5 | B14: 92000 | C14: 93000 | D14: 340 | E14: 0 | F14: 0 | G14: 0 | H14: 0 | I14: 0 | J14: 0 | K14: 0 | L14: 3300
A16: 6 | B16: 93000 | C16: 94000 | D16: 390 | E16: 0 | F16: 0 | G16: 0 | H16: 0 | I16: 0 | J16: 0 | K16: 0 | L16: 3300
A17: 7 | B17: 94000 | C17: 95000 | D17: 440 | E17: 0 | F17: 0 | G17: 0 | H17: 0 | I17: 0 | J17: 0 | K17: 0 | L17: 3300
A18: 8 | B18: 95000 | C18: 96000 | D18: 490 | E18: 0 | F18: 0 | G18: 0 | H18: 0 | I18: 0 | J18: 0 | K18: 0 | L18: 3400
A19: 9 | B19: 96000 | C19: 97000 | D19: 540 | E19: 0 | F19: 0 | G19: 0 | H19: 0 | I19: 0 | J19: 0 | K19: 0 | L19: 3400
A20: 10 | B20: 97000 | C20: 98000 | D20: 590 | E20: 0 | F20: 0 | G20: 0 | H20: 0 | I20: 0 | J20: 0 | K20: 0 | L20: 3500
A22: 11 | B22: 98000 | C22: 99000 | D22: 640 | E22: 0 | F22: 0 | G22: 0 | H22: 0 | I22: 0 | J22: 0 | K22: 0 | L22: 3500
A23: 12 | B23: 99000 | C23: 101000 | D23: 720 | E23: 0 | F23: 0 | G23: 0 | H23: 0 | I23: 0 | J23: 0 | K23: 0 | L23: 3600
A24: 13 | B24: 101000 | C24: 103000 | D24: 830 | E24: 0 | F24: 0 | G24: 0 | H24: 0 | I24: 0 | J24: 0 | K24: 0 | L24: 3600
A25: 14 | B25: 103000 | C25: 105000 | D25: 930 | E25: 0 | F25: 0 | G25: 0 | H25: 0 | I25: 0 | J25: 0 | K25: 0 | L25: 3700
A26: 15 | B26: 105000 | C26: 107000 | D26: 1030 | E26: 0 | F26: 0 | G26: 0 | H26: 0 | I26: 0 | J26: 0 | K26: 0 | L26: 3800
A28: 16 | B28: 107000 | C28: 109000 | D28: 1130 | E28: 0 | F28: 0 | G28: 0 | H28: 0 | I28: 0 | J28: 0 | K28: 0 | L28: 3800
A29: 17 | B29: 109000 | C29: 111000 | D29: 1240 | E29: 0 | F29: 0 | G29: 0 | H29: 0 | I29: 0 | J29: 0 | K29: 0 | L29: 3900
A30: 18 | B30: 111000 | C30: 113000 | D30: 1340 | E30: 0 | F30: 0 | G30: 0 | H30: 0 | I30: 0 | J30: 0 | K30: 0 | L30: 4000
A31: 19 | B31: 113000 | C31: 115000 | D31: 1440 | E31: 0 | F31: 0 | G31: 0 | H31: 0 | I31: 0 | J31: 0 | K31: 0 | L31: 4100
A32: 20 | B32: 115000 | C32: 117000 | D32: 1540 | E32: 0 | F32: 0 | G32: 0 | H32: 0 | I32: 0 | J32: 0 | K32: 0 | L32: 4100
A34: 21 | B34: 117000 | C34: 119000 | D34: 1640 | E34: 0 | F34: 0 | G34: 0 | H34: 0 | I34: 0 | J34: 0 | K34: 0 | L34: 4200
A35: 22 | B35: 119000 | C35: 121000 | D35: 1750 | E35: 120 | F35: 0 | G35: 0 | H35: 0 | I35: 0 | J35: 0 | K35: 0 | L35: 4300
A36: 23 | B36: 121000 | C36: 123000 | D36: 1850 | E36: 220 | F36: 0 | G36: 0 | H36: 0 | I36: 0 | J36: 0 | K36: 0 | L36: 4500
A37: 24 | B37: 123000 | C37: 125000 | D37: 1950 | E37: 330 | F37: 0 | G37: 0 | H37: 0 | I37: 0 | J37: 0 | K37: 0 | L37: 4800
A38: 25 | B38: 125000 | C38: 127000 | D38: 2050 | E38: 430 | F38: 0 | G38: 0 | H38: 0 | I38: 0 | J38: 0 | K38: 0 | L38: 5100
A40: 26 | B40: 127000 | C40: 129000 | D40: 2150 | E40: 530 | F40: 0 | G40: 0 | H40: 0 | I40: 0 | J40: 0 | K40: 0 | L40: 5400
A41: 27 | B41: 129000 | C41: 131000 | D41: 2260 | E41: 630 | F41: 0 | G41: 0 | H41: 0 | I41: 0 | J41: 0 | K41: 0 | L41: 5700
A42: 28 | B42: 131000 | C42: 133000 | D42: 2360 | E42: 740 | F42: 0 | G42: 0 | H42: 0 | I42: 0 | J42: 0 | K42: 0 | L42: 6000
A43: 29 | B43: 133000 | C43: 135000 | D43: 2460 | E43: 840 | F43: 0 | G43: 0 | H43: 0 | I43: 0 | J43: 0 | K43: 0 | L43: 6300
A44: 30 | B44: 135000 | C44: 137000 | D44: 2550 | E44: 930 | F44: 0 | G44: 0 | H44: 0 | I44: 0 | J44: 0 | K44: 0 | L44: 6600
A46: 31 | B46: 137000 | C46: 139000 | D46: 2610 | E46: 990 | F46: 0 | G46: 0 | H46: 0 | I46: 0 | J46: 0 | K46: 0 | L46: 6800
A47: 32 | B47: 139000 | C47: 141000 | D47: 2680 | E47: 1050 | F47: 0 | G47: 0 | H47: 0 | I47: 0 | J47: 0 | K47: 0 | L47: 7100
A48: 33 | B48: 141000 | C48: 143000 | D48: 2740 | E48: 1110 | F48: 0 | G48: 0 | H48: 0 | I48: 0 | J48: 0 | K48: 0 | L48: 7500
A49: 34 | B49: 143000 | C49: 145000 | D49: 2800 | E49: 1170 | F49: 0 | G49: 0 | H49: 0 | I49: 0 | J49: 0 | K49: 0 | L49: 7800
A50: 35 | B50: 145000 | C50: 147000 | D50: 2860 | E50: 1240 | F50: 0 | G50: 0 | H50: 0 | I50: 0 | J50: 0 | K50: 0 | L50: 8100
A52: 36 | B52: 147000 | C52: 149000 | D52: 2920 | E52: 1300 | F52: 0 | G52: 0 | H52: 0 | I52: 0 | J52: 0 | K52: 0 | L52: 8400
A53: 37 | B53: 149000 | C53: 151000 | D53: 2980 | E53: 1360 | F53: 0 | G53: 0 | H53: 0 | I53: 0 | J53: 0 | K53: 0 | L53: 8700
A54: 38 | B54: 151000 | C54: 153000 | D54: 3050 | E54: 1430 | F54: 0 | G54: 0 | H54: 0 | I54: 0 | J54: 0 | K54: 0 | L54: 9000
A55: 39 | B55: 153000 | C55: 155000 | D55: 3120 | E55: 1500 | F55: 0 | G55: 0 | H55: 0 | I55: 0 | J55: 0 | K55: 0 | L55: 9300
A56: 40 | B56: 155000 | C56: 157000 | D56: 3200 | E56: 1570 | F56: 0 | G56: 0 | H56: 0 | I56: 0 | J56: 0 | K56: 0 | L56: 9600
A58: 41 | B58: 157000 | C58: 159000 | D58: 3270 | E58: 1640 | F58: 0 | G58: 0 | H58: 0 | I58: 0 | J58: 0 | K58: 0 | L58: 9900
A59: 42 | B59: 159000 | C59: 161000 | D59: 3340 | E59: 1720 | F59: 100 | G59: 0 | H59: 0 | I59: 0 | J59: 0 | K59: 0 | L59: 10200
A60: 43 | B60: 161000 | C60: 163000 | D60: 3410 | E60: 1790 | F60: 170 | G60: 0 | H60: 0 | I60: 0 | J60: 0 | K60: 0 | L60: 10500
A61: 44 | B61: 163000 | C61: 165000 | D61: 3480 | E61: 1860 | F61: 250 | G61: 0 | H61: 0 | I61: 0 | J61: 0 | K61: 0 | L61: 10800
A62: 45 | B62: 165000 | C62: 167000 | D62: 3550 | E62: 1930 | F62: 320 | G62: 0 | H62: 0 | I62: 0 | J62: 0 | K62: 0 | L62: 11100
A64: 46 | B64: 167000 | C64: 169000 | D64: 3620 | E64: 2000 | F64: 390 | G64: 0 | H64: 0 | I64: 0 | J64: 0 | K64: 0 | L64: 11400
A65: 47 | B65: 169000 | C65: 171000 | D65: 3700 | E65: 2070 | F65: 460 | G65: 0 | H65: 0 | I65: 0 | J65: 0 | K65: 0 | L65: 11700
A66: 48 | B66: 171000 | C66: 173000 | D66: 3770 | E66: 2140 | F66: 530 | G66: 0 | H66: 0 | I66: 0 | J66: 0 | K66: 0 | L66: 12000
A67: 49 | B67: 173000 | C67: 175000 | D67: 3840 | E67: 2220 | F67: 600 | G67: 0 | H67: 0 | I67: 0 | J67: 0 | K67: 0 | L67: 12400
A68: 50 | B68: 175000 | C68: 177000 | D68: 3910 | E68: 2290 | F68: 670 | G68: 0 | H68: 0 | I68: 0 | J68: 0 | K68: 0 | L68: 12700
A70: 51 | B70: 177000 | C70: 179000 | D70: 3980 | E70: 2360 | F70: 750 | G70: 0 | H70: 0 | I70: 0 | J70: 0 | K70: 0 | L70: 13200
A71: 52 | B71: 179000 | C71: 181000 | D71: 4050 | E71: 2430 | F71: 820 | G71: 0 | H71: 0 | I71: 0 | J71: 0 | K71: 0 | L71: 13900
A72: 53 | B72: 181000 | C72: 183000 | D72: 4120 | E72: 2500 | F72: 890 | G72: 0 | H72: 0 | I72: 0 | J72: 0 | K72: 0 | L72: 14600
A73: 54 | B73: 183000 | C73: 185000 | D73: 4200 | E73: 2570 | F73: 960 | G73: 0 | H73: 0 | I73: 0 | J73: 0 | K73: 0 | L73: 15300
A74: 55 | B74: 185000 | C74: 187000 | D74: 4270 | E74: 2640 | F74: 1030 | G74: 0 | H74: 0 | I74: 0 | J74: 0 | K74: 0 | L74: 16000
A76: 56 | B76: 187000 | C76: 189000 | D76: 4340 | E76: 2720 | F76: 1100 | G76: 0 | H76: 0 | I76: 0 | J76: 0 | K76: 0 | L76: 16700
A77: 57 | B77: 189000 | C77: 191000 | D77: 4410 | E77: 2790 | F77: 1170 | G77: 0 | H77: 0 | I77: 0 | J77: 0 | K77: 0 | L77: 17500
A78: 58 | B78: 191000 | C78: 193000 | D78: 4480 | E78: 2860 | F78: 1250 | G78: 0 | H78: 0 | I78: 0 | J78: 0 | K78: 0 | L78: 18100
A79: 59 | B79: 193000 | C79: 195000 | D79: 4550 | E79: 2930 | F79: 1320 | G79: 0 | H79: 0 | I79: 0 | J79: 0 | K79: 0 | L79: 18800
A80: 60 | B80: 195000 | C80: 197000 | D80: 4630 | E80: 3000 | F80: 1390 | G80: 0 | H80: 0 | I80: 0 | J80: 0 | K80: 0 | L80: 19500
A82: 61 | B82: 197000 | C82: 199000 | D82: 4700 | E82: 3070 | F82: 1460 | G82: 0 | H82: 0 | I82: 0 | J82: 0 | K82: 0 | L82: 20200
A83: 62 | B83: 199000 | C83: 201000 | D83: 4770 | E83: 3140 | F83: 1530 | G83: 0 | H83: 0 | I83: 0 | J83: 0 | K83: 0 | L83: 20900
A84: 63 | B84: 201000 | C84: 203000 | D84: 4840 | E84: 3220 | F84: 1600 | G84: 0 | H84: 0 | I84: 0 | J84: 0 | K84: 0 | L84: 21500
A85: 64 | B85: 203000 | C85: 205000 | D85: 4910 | E85: 3290 | F85: 1670 | G85: 0 | H85: 0 | I85: 0 | J85: 0 | K85: 0 | L85: 22200
A86: 65 | B86: 205000 | C86: 207000 | D86: 4980 | E86: 3360 | F86: 1750 | G86: 130 | H86: 0 | I86: 0 | J86: 0 | K86: 0 | L86: 22700
A88: 66 | B88: 207000 | C88: 209000 | D88: 5050 | E88: 3430 | F88: 1820 | G88: 200 | H88: 0 | I88: 0 | J88: 0 | K88: 0 | L88: 23300
A89: 67 | B89: 209000 | C89: 211000 | D89: 5130 | E89: 3500 | F89: 1890 | G89: 280 | H89: 0 | I89: 0 | J89: 0 | K89: 0 | L89: 23900
A90: 68 | B90: 211000 | C90: 213000 | D90: 5200 | E90: 3570 | F90: 1960 | G90: 350 | H90: 0 | I90: 0 | J90: 0 | K90: 0 | L90: 24400
A91: 69 | B91: 213000 | C91: 215000 | D91: 5270 | E91: 3640 | F91: 2030 | G91: 420 | H91: 0 | I91: 0 | J91: 0 | K91: 0 | L91: 25000
A92: 70 | B92: 215000 | C92: 217000 | D92: 5340 | E92: 3720 | F92: 2100 | G92: 490 | H92: 0 | I92: 0 | J92: 0 | K92: 0 | L92: 25500
A94: 71 | B94: 217000 | C94: 219000 | D94: 5410 | E94: 3790 | F94: 2170 | G94: 560 | H94: 0 | I94: 0 | J94: 0 | K94: 0 | L94: 26100
A95: 72 | B95: 219000 | C95: 221000 | D95: 5480 | E95: 3860 | F95: 2250 | G95: 630 | H95: 0 | I95: 0 | J95: 0 | K95: 0 | L95: 26800
A96: 73 | B96: 221000 | C96: 224000 | D96: 5560 | E96: 3950 | F96: 2340 | G96: 710 | H96: 0 | I96: 0 | J96: 0 | K96: 0 | L96: 27400
A97: 74 | B97: 224000 | C97: 227000 | D97: 5680 | E97: 4060 | F97: 2440 | G97: 830 | H97: 0 | I97: 0 | J97: 0 | K97: 0 | L97: 28400
A98: 75 | B98: 227000 | C98: 230000 | D98: 5780 | E98: 4170 | F98: 2550 | G98: 930 | H98: 0 | I98: 0 | J98: 0 | K98: 0 | L98: 29300
A100: 76 | B100: 230000 | C100: 233000 | D100: 5890 | E100: 4280 | F100: 2650 | G100: 1040 | H100: 0 | I100: 0 | J100: 0 | K100: 0 | L100: 30300
A101: 77 | B101: 233000 | C101: 236000 | D101: 5990 | E101: 4380 | F101: 2770 | G101: 1140 | H101: 0 | I101: 0 | J101: 0 | K101: 0 | L101: 31300
A102: 78 | B102: 236000 | C102: 239000 | D102: 6110 | E102: 4490 | F102: 2870 | G102: 1260 | H102: 0 | I102: 0 | J102: 0 | K102: 0 | L102: 32400
A103: 79 | B103: 239000 | C103: 242000 | D103: 6210 | E103: 4590 | F103: 2980 | G103: 1360 | H103: 0 | I103: 0 | J103: 0 | K103: 0 | L103: 33400
A104: 80 | B104: 242000 | C104: 245000 | D104: 6320 | E104: 4710 | F104: 3080 | G104: 1470 | H104: 0 | I104: 0 | J104: 0 | K104: 0 | L104: 34400
A106: 81 | B106: 245000 | C106: 248000 | D106: 6420 | E106: 4810 | F106: 3200 | G106: 1570 | H106: 0 | I106: 0 | J106: 0 | K106: 0 | L106: 35400
A107: 82 | B107: 248000 | C107: 251000 | D107: 6530 | E107: 4920 | F107: 3300 | G107: 1680 | H107: 0 | I107: 0 | J107: 0 | K107: 0 | L107: 36400
A108: 83 | B108: 251000 | C108: 254000 | D108: 6640 | E108: 5020 | F108: 3410 | G108: 1790 | H108: 170 | I108: 0 | J108: 0 | K108: 0 | L108: 37500
A109: 84 | B109: 254000 | C109: 257000 | D109: 6750 | E109: 5140 | F109: 3510 | G109: 1900 | H109: 290 | I109: 0 | J109: 0 | K109: 0 | L109: 38500
A110: 85 | B110: 257000 | C110: 260000 | D110: 6850 | E110: 5240 | F110: 3620 | G110: 2000 | H110: 390 | I110: 0 | J110: 0 | K110: 0 | L110: 39400
A112: 86 | B112: 260000 | C112: 263000 | D112: 6960 | E112: 5350 | F112: 3730 | G112: 2110 | H112: 500 | I112: 0 | J112: 0 | K112: 0 | L112: 40400
A113: 87 | B113: 263000 | C113: 266000 | D113: 7070 | E113: 5450 | F113: 3840 | G113: 2220 | H113: 600 | I113: 0 | J113: 0 | K113: 0 | L113: 41500
A114: 88 | B114: 266000 | C114: 269000 | D114: 7180 | E114: 5560 | F114: 3940 | G114: 2330 | H114: 710 | I114: 0 | J114: 0 | K114: 0 | L114: 42500
A115: 89 | B115: 269000 | C115: 272000 | D115: 7280 | E115: 5670 | F115: 4050 | G115: 2430 | H115: 820 | I115: 0 | J115: 0 | K115: 0 | L115: 43500
A116: 90 | B116: 272000 | C116: 275000 | D116: 7390 | E116: 5780 | F116: 4160 | G116: 2540 | H116: 930 | I116: 0 | J116: 0 | K116: 0 | L116: 44500
A118: 91 | B118: 275000 | C118: 278000 | D118: 7490 | E118: 5880 | F118: 4270 | G118: 2640 | H118: 1030 | I118: 0 | J118: 0 | K118: 0 | L118: 45500
A119: 92 | B119: 278000 | C119: 281000 | D119: 7610 | E119: 5990 | F119: 4370 | G119: 2760 | H119: 1140 | I119: 0 | J119: 0 | K119: 0 | L119: 46600
A120: 93 | B120: 281000 | C120: 284000 | D120: 7710 | E120: 6100 | F120: 4480 | G120: 2860 | H120: 1250 | I120: 0 | J120: 0 | K120: 0 | L120: 47600
A121: 94 | B121: 284000 | C121: 287000 | D121: 7820 | E121: 6210 | F121: 4580 | G121: 2970 | H121: 1360 | I121: 0 | J121: 0 | K121: 0 | L121: 48600
A122: 95 | B122: 287000 | C122: 290000 | D122: 7920 | E122: 6310 | F122: 4700 | G122: 3070 | H122: 1460 | I122: 0 | J122: 0 | K122: 0 | L122: 49500
A124: 96 | B124: 290000 | C124: 293000 | D124: 8040 | E124: 6420 | F124: 4800 | G124: 3190 | H124: 1570 | I124: 0 | J124: 0 | K124: 0 | L124: 50500
A125: 97 | B125: 293000 | C125: 296000 | D125: 8140 | E125: 6520 | F125: 4910 | G125: 3290 | H125: 1670 | I125: 0 | J125: 0 | K125: 0 | L125: 51600
A126: 98 | B126: 296000 | C126: 299000 | D126: 8250 | E126: 6640 | F126: 5010 | G126: 3400 | H126: 1790 | I126: 160 | J126: 0 | K126: 0 | L126: 52300
A127: 99 | B127: 299000 | C127: 302000 | D127: 8420 | E127: 6740 | F127: 5130 | G127: 3510 | H127: 1890 | I127: 280 | J127: 0 | K127: 0 | L127: 52900
A128: 100 | B128: 302000 | C128: 305000 | D128: 8670 | E128: 6860 | F128: 5250 | G128: 3630 | H128: 2010 | I128: 400 | J128: 0 | K128: 0 | L128: 53500
A130: 101 | B130: 305000 | C130: 308000 | D130: 8910 | E130: 6980 | F130: 5370 | G130: 3760 | H130: 2130 | I130: 520 | J130: 0 | K130: 0 | L130: 54200
A131: 102 | B131: 308000 | C131: 311000 | D131: 9160 | E131: 7110 | F131: 5490 | G131: 3880 | H131: 2260 | I131: 640 | J131: 0 | K131: 0 | L131: 54800
A132: 103 | B132: 311000 | C132: 314000 | D132: 9400 | E132: 7230 | F132: 5620 | G132: 4000 | H132: 2380 | I132: 770 | J132: 0 | K132: 0 | L132: 55400
A133: 104 | B133: 314000 | C133: 317000 | D133: 9650 | E133: 7350 | F133: 5740 | G133: 4120 | H133: 2500 | I133: 890 | J133: 0 | K133: 0 | L133: 56100
A134: 105 | B134: 317000 | C134: 320000 | D134: 9890 | E134: 7470 | F134: 5860 | G134: 4250 | H134: 2620 | I134: 1010 | J134: 0 | K134: 0 | L134: 56800
A136: 106 | B136: 320000 | C136: 323000 | D136: 10140 | E136: 7600 | F136: 5980 | G136: 4370 | H136: 2750 | I136: 1130 | J136: 0 | K136: 0 | L136: 57700
A137: 107 | B137: 323000 | C137: 326000 | D137: 10380 | E137: 7720 | F137: 6110 | G137: 4490 | H137: 2870 | I137: 1260 | J137: 0 | K137: 0 | L137: 58500
A138: 108 | B138: 326000 | C138: 329000 | D138: 10630 | E138: 7840 | F138: 6230 | G138: 4610 | H138: 2990 | I138: 1380 | J138: 0 | K138: 0 | L138: 59300
A139: 109 | B139: 329000 | C139: 332000 | D139: 10870 | E139: 7960 | F139: 6350 | G139: 4740 | H139: 3110 | I139: 1500 | J139: 0 | K139: 0 | L139: 60200
A140: 110 | B140: 332000 | C140: 335000 | D140: 11120 | E140: 8090 | F140: 6470 | G140: 4860 | H140: 3240 | I140: 1620 | J140: 0 | K140: 0 | L140: 61100
A142: 111 | B142: 335000 | C142: 338000 | D142: 11360 | E142: 8210 | F142: 6600 | G142: 4980 | H142: 3360 | I142: 1750 | J142: 130 | K142: 0 | L142: 62000
A143: 112 | B143: 338000 | C143: 341000 | D143: 11610 | E143: 8370 | F143: 6720 | G143: 5110 | H143: 3480 | I143: 1870 | J143: 260 | K143: 0 | L143: 62900
A144: 113 | B144: 341000 | C144: 344000 | D144: 11850 | E144: 8620 | F144: 6840 | G144: 5230 | H144: 3600 | I144: 1990 | J144: 380 | K144: 0 | L144: 63800
A145: 114 | B145: 344000 | C145: 347000 | D145: 12100 | E145: 8860 | F145: 6960 | G145: 5350 | H145: 3730 | I145: 2110 | J145: 500 | K145: 0 | L145: 64700
A146: 115 | B146: 347000 | C146: 350000 | D146: 12340 | E146: 9110 | F146: 7090 | G146: 5470 | H146: 3850 | I146: 2240 | J146: 620 | K146: 0 | L146: 65800
A148: 116 | B148: 350000 | C148: 353000 | D148: 12590 | E148: 9350 | F148: 7210 | G148: 5600 | H148: 3970 | I148: 2360 | J148: 750 | K148: 0 | L148: 66700
A149: 117 | B149: 353000 | C149: 356000 | D149: 12830 | E149: 9600 | F149: 7330 | G149: 5720 | H149: 4090 | I149: 2480 | J149: 870 | K149: 0 | L149: 67600
A150: 118 | B150: 356000 | C150: 359000 | D150: 13080 | E150: 9840 | F150: 7450 | G150: 5840 | H150: 4220 | I150: 2600 | J150: 990 | K150: 0 | L150: 68500
A151: 119 | B151: 359000 | C151: 362000 | D151: 13320 | E151: 10090 | F151: 7580 | G151: 5960 | H151: 4340 | I151: 2730 | J151: 1110 | K151: 0 | L151: 69400
A152: 120 | B152: 362000 | C152: 365000 | D152: 13570 | E152: 10330 | F152: 7700 | G152: 6090 | H152: 4460 | I152: 2850 | J152: 1240 | K152: 0 | L152: 70400
A154: 121 | B154: 365000 | C154: 368000 | D154: 13810 | E154: 10580 | F154: 7820 | G154: 6210 | H154: 4580 | I154: 2970 | J154: 1360 | K154: 0 | L154: 71400
A155: 122 | B155: 368000 | C155: 371000 | D155: 14060 | E155: 10820 | F155: 7940 | G155: 6330 | H155: 4710 | I155: 3090 | J155: 1480 | K155: 0 | L155: 72300
A156: 123 | B156: 371000 | C156: 374000 | D156: 14300 | E156: 11070 | F156: 8070 | G156: 6450 | H156: 4830 | I156: 3220 | J156: 1600 | K156: 0 | L156: 73100
A157: 124 | B157: 374000 | C157: 377000 | D157: 14550 | E157: 11310 | F157: 8190 | G157: 6580 | H157: 4950 | I157: 3340 | J157: 1730 | K157: 100 | L157: 73900
A158: 125 | B158: 377000 | C158: 380000 | D158: 14790 | E158: 11560 | F158: 8320 | G158: 6700 | H158: 5070 | I158: 3460 | J158: 1850 | K158: 220 | L158: 74700
A160: 126 | B160: 380000 | C160: 383000 | D160: 15040 | E160: 11800 | F160: 8570 | G160: 6820 | H160: 5200 | I160: 3580 | J160: 1970 | K160: 350 | L160: 75700
A161: 127 | B161: 383000 | C161: 386000 | D161: 15280 | E161: 12050 | F161: 8810 | G161: 6940 | H161: 5320 | I161: 3710 | J161: 2090 | K161: 470 | L161: 76500
A162: 128 | B162: 386000 | C162: 389000 | D162: 15530 | E162: 12290 | F162: 9060 | G162: 7070 | H162: 5440 | I162: 3830 | J162: 2220 | K162: 590 | L162: 77300
A163: 129 | B163: 389000 | C163: 392000 | D163: 15770 | E163: 12540 | F163: 9300 | G163: 7190 | H163: 5560 | I163: 3950 | J163: 2340 | K163: 710 | L163: 78200
A164: 130 | B164: 392000 | C164: 395000 | D164: 16020 | E164: 12780 | F164: 9550 | G164: 7310 | H164: 5690 | I164: 4070 | J164: 2460 | K164: 840 | L164: 79700
A166: 131 | B166: 395000 | C166: 398000 | D166: 16260 | E166: 13030 | F166: 9790 | G166: 7430 | H166: 5810 | I166: 4200 | J166: 2580 | K166: 960 | L166: 81400
A167: 132 | B167: 398000 | C167: 401000 | D167: 16510 | E167: 13270 | F167: 10040 | G167: 7560 | H167: 5930 | I167: 4320 | J167: 2710 | K167: 1080 | L167: 82900
A168: 133 | B168: 401000 | C168: 404000 | D168: 16750 | E168: 13520 | F168: 10280 | G168: 7680 | H168: 6050 | I168: 4440 | J168: 2830 | K168: 1200 | L168: 84500
A169: 134 | B169: 404000 | C169: 407000 | D169: 17000 | E169: 13760 | F169: 10530 | G169: 7800 | H169: 6180 | I169: 4560 | J169: 2950 | K169: 1330 | L169: 86100
A170: 135 | B170: 407000 | C170: 410000 | D170: 17240 | E170: 14010 | F170: 10770 | G170: 7920 | H170: 6300 | I170: 4690 | J170: 3070 | K170: 1450 | L170: 87700
A172: 136 | B172: 410000 | C172: 413000 | D172: 17490 | E172: 14250 | F172: 11020 | G172: 8050 | H172: 6420 | I172: 4810 | J172: 3200 | K172: 1570 | L172: 89200
A173: 137 | B173: 413000 | C173: 416000 | D173: 17730 | E173: 14500 | F173: 11260 | G173: 8170 | H173: 6540 | I173: 4930 | J173: 3320 | K173: 1690 | L173: 90800
A174: 138 | B174: 416000 | C174: 419000 | D174: 17980 | E174: 14740 | F174: 11510 | G174: 8290 | H174: 6670 | I174: 5050 | J174: 3440 | K174: 1820 | L174: 92400
A175: 139 | B175: 419000 | C175: 422000 | D175: 18220 | E175: 14990 | F175: 11750 | G175: 8530 | H175: 6790 | I175: 5180 | J175: 3560 | K175: 1940 | L175: 93900
A176: 140 | B176: 422000 | C176: 425000 | D176: 18470 | E176: 15230 | F176: 12000 | G176: 8770 | H176: 6910 | I176: 5300 | J176: 3690 | K176: 2060 | L176: 95600
A178: 141 | B178: 425000 | C178: 428000 | D178: 18710 | E178: 15480 | F178: 12240 | G178: 9020 | H178: 7030 | I178: 5420 | J178: 3810 | K178: 2180 | L178: 97100
A179: 142 | B179: 428000 | C179: 431000 | D179: 18960 | E179: 15720 | F179: 12490 | G179: 9260 | H179: 7160 | I179: 5540 | J179: 3930 | K179: 2310 | L179: 98600
A180: 143 | B180: 431000 | C180: 434000 | D180: 19210 | E180: 15970 | F180: 12730 | G180: 9510 | H180: 7280 | I180: 5670 | J180: 4050 | K180: 2430 | L180: 100300
A181: 144 | B181: 434000 | C181: 437000 | D181: 19450 | E181: 16210 | F181: 12980 | G181: 9750 | H181: 7400 | I181: 5790 | J181: 4180 | K181: 2550 | L181: 101800
A182: 145 | B182: 437000 | C182: 440000 | D182: 19700 | E182: 16460 | F182: 13220 | G182: 10000 | H182: 7520 | I182: 5910 | J182: 4300 | K182: 2680 | L182: 103400
A184: 146 | B184: 440000 | C184: 443000 | D184: 20090 | E184: 16700 | F184: 13470 | G184: 10240 | H184: 7650 | I184: 6030 | J184: 4420 | K184: 2800 | L184: 105000
A185: 147 | B185: 443000 | C185: 446000 | D185: 20580 | E185: 16950 | F185: 13710 | G185: 10490 | H185: 7770 | I185: 6160 | J185: 4540 | K185: 2920 | L185: 106600
A186: 148 | B186: 446000 | C186: 449000 | D186: 21070 | E186: 17190 | F186: 13960 | G186: 10730 | H186: 7890 | I186: 6280 | J186: 4670 | K186: 3040 | L186: 108100
A187: 149 | B187: 449000 | C187: 452000 | D187: 21560 | E187: 17440 | F187: 14200 | G187: 10980 | H187: 8010 | I187: 6400 | J187: 4790 | K187: 3170 | L187: 109700
A188: 150 | B188: 452000 | C188: 455000 | D188: 22050 | E188: 17680 | F188: 14450 | G188: 11220 | H188: 8140 | I188: 6520 | J188: 4910 | K188: 3290 | L188: 111300
A190: 151 | B190: 455000 | C190: 458000 | D190: 22540 | E190: 17930 | F190: 14690 | G190: 11470 | H190: 8260 | I190: 6650 | J190: 5030 | K190: 3410 | L190: 112800
A191: 152 | B191: 458000 | C191: 461000 | D191: 23030 | E191: 18170 | F191: 14940 | G191: 11710 | H191: 8470 | I191: 6770 | J191: 5160 | K191: 3530 | L191: 114500
A192: 153 | B192: 461000 | C192: 464000 | D192: 23520 | E192: 18420 | F192: 15180 | G192: 11960 | H192: 8720 | I192: 6890 | J192: 5280 | K192: 3660 | L192: 116000
A193: 154 | B193: 464000 | C193: 467000 | D193: 24010 | E193: 18660 | F193: 15430 | G193: 12200 | H193: 8960 | I193: 7010 | J193: 5400 | K193: 3780 | L193: 117500
A194: 155 | B194: 467000 | C194: 470000 | D194: 24500 | E194: 18910 | F194: 15670 | G194: 12450 | H194: 9210 | I194: 7140 | J194: 5520 | K194: 3900 | L194: 119200
A196: 156 | B196: 470000 | C196: 473000 | D196: 24990 | E196: 19150 | F196: 15920 | G196: 12690 | H196: 9450 | I196: 7260 | J196: 5650 | K196: 4020 | L196: 120700
A197: 157 | B197: 473000 | C197: 476000 | D197: 25480 | E197: 19400 | F197: 16160 | G197: 12940 | H197: 9700 | I197: 7380 | J197: 5770 | K197: 4150 | L197: 122300
A198: 158 | B198: 476000 | C198: 479000 | D198: 25970 | E198: 19640 | F198: 16410 | G198: 13180 | H198: 9940 | I198: 7500 | J198: 5890 | K198: 4270 | L198: 123800
A199: 159 | B199: 479000 | C199: 482000 | D199: 26460 | E199: 20000 | F199: 16650 | G199: 13430 | H199: 10190 | I199: 7630 | J199: 6010 | K199: 4390 | L199: 125400
A200: 160 | B200: 482000 | C200: 485000 | D200: 26950 | E200: 20490 | F200: 16900 | G200: 13670 | H200: 10430 | I200: 7750 | J200: 6140 | K200: 4510 | L200: 127000
A202: 161 | B202: 485000 | C202: 488000 | D202: 27440 | E202: 20980 | F202: 17140 | G202: 13920 | H202: 10680 | I202: 7870 | J202: 6260 | K202: 4640 | L202: 128500
A203: 162 | B203: 488000 | C203: 491000 | D203: 27930 | E203: 21470 | F203: 17390 | G203: 14160 | H203: 10920 | I203: 7990 | J203: 6380 | K203: 4760 | L203: 130200
A204: 163 | B204: 491000 | C204: 494000 | D204: 28420 | E204: 21960 | F204: 17630 | G204: 14410 | H204: 11170 | I204: 8120 | J204: 6500 | K204: 4880 | L204: 131700
A205: 164 | B205: 494000 | C205: 497000 | D205: 28910 | E205: 22450 | F205: 17880 | G205: 14650 | H205: 11410 | I205: 8240 | J205: 6630 | K205: 5000 | L205: 133300
A206: 165 | B206: 497000 | C206: 500000 | D206: 29400 | E206: 22940 | F206: 18120 | G206: 14900 | H206: 11660 | I206: 8420 | J206: 6750 | K206: 5130 | L206: 134900
A208: 166 | B208: 500000 | C208: 503000 | D208: 29890 | E208: 23430 | F208: 18370 | G208: 15140 | H208: 11900 | I208: 8670 | J208: 6870 | K208: 5250 | L208: 136400
A209: 167 | B209: 503000 | C209: 506000 | D209: 30380 | E209: 23920 | F209: 18610 | G209: 15390 | H209: 12150 | I209: 8910 | J209: 6990 | K209: 5370 | L209: 138100
A210: 168 | B210: 506000 | C210: 509000 | D210: 30880 | E210: 24410 | F210: 18860 | G210: 15630 | H210: 12390 | I210: 9160 | J210: 7120 | K210: 5490 | L210: 139900
A211: 169 | B211: 509000 | C211: 512000 | D211: 31370 | E211: 24900 | F211: 19100 | G211: 15880 | H211: 12640 | I211: 9400 | J211: 7240 | K211: 5620 | L211: 141500
A212: 170 | B212: 512000 | C212: 515000 | D212: 31860 | E212: 25390 | F212: 19350 | G212: 16120 | H212: 12890 | I212: 9650 | J212: 7360 | K212: 5740 | L212: 143200
A214: 171 | B214: 515000 | C214: 518000 | D214: 32350 | E214: 25880 | F214: 19590 | G214: 16370 | H214: 13130 | I214: 9890 | J214: 7480 | K214: 5860 | L214: 145000
A215: 172 | B215: 518000 | C215: 521000 | D215: 32840 | E215: 26370 | F215: 19900 | G215: 16610 | H215: 13380 | I215: 10140 | J215: 7610 | K215: 5980 | L215: 146600
A216: 173 | B216: 521000 | C216: 524000 | D216: 33330 | E216: 26860 | F216: 20390 | G216: 16860 | H216: 13620 | I216: 10380 | J216: 7730 | K216: 6110 | L216: 148400
A217: 174 | B217: 524000 | C217: 527000 | D217: 33820 | E217: 27350 | F217: 20880 | G217: 17100 | H217: 13870 | I217: 10630 | J217: 7850 | K217: 6230 | L217: 150100
A218: 175 | B218: 527000 | C218: 530000 | D218: 34310 | E218: 27840 | F218: 21370 | G218: 17350 | H218: 14110 | I218: 10870 | J218: 7970 | K218: 6350 | L218: 151700
A220: 176 | B220: 530000 | C220: 533000 | D220: 34800 | E220: 28330 | F220: 21860 | G220: 17590 | H220: 14360 | I220: 11120 | J220: 8100 | K220: 6470 | L220: 153300
A221: 177 | B221: 533000 | C221: 536000 | D221: 35290 | E221: 28820 | F221: 22350 | G221: 17840 | H221: 14600 | I221: 11360 | J221: 8220 | K221: 6600 | L221: 154900
A222: 178 | B222: 536000 | C222: 539000 | D222: 35780 | E222: 29310 | F222: 22840 | G222: 18080 | H222: 14850 | I222: 11610 | J222: 8380 | K222: 6720 | L222: 156400
A223: 179 | B223: 539000 | C223: 542000 | D223: 36270 | E223: 29800 | F223: 23330 | G223: 18330 | H223: 15090 | I223: 11850 | J223: 8630 | K223: 6840 | L223: 158100
A224: 180 | B224: 542000 | C224: 545000 | D224: 36760 | E224: 30290 | F224: 23820 | G224: 18570 | H224: 15340 | I224: 12100 | J224: 8870 | K224: 6960 | L224: 159600
A226: 181 | B226: 545000 | C226: 548000 | D226: 37250 | E226: 30780 | F226: 24310 | G226: 18820 | H226: 15580 | I226: 12340 | J226: 9120 | K226: 7090 | L226: 161200
A227: 182 | B227: 548000 | C227: 551000 | D227: 37740 | E227: 31270 | F227: 24800 | G227: 19060 | H227: 15830 | I227: 12590 | J227: 9360 | K227: 7210 | L227: 162700
A228: 183 | B228: 551000 | C228: 554000 | D228: 38280 | E228: 31810 | F228: 25340 | G228: 19330 | H228: 16100 | I228: 12860 | J228: 9630 | K228: 7350 | L228: 164300
A229: 184 | B229: 554000 | C229: 557000 | D229: 38830 | E229: 32370 | F229: 25890 | G229: 19600 | H229: 16380 | I229: 13140 | J229: 9900 | K229: 7480 | L229: 165900
A230: 185 | B230: 557000 | C230: 560000 | D230: 39380 | E230: 32920 | F230: 26440 | G230: 19980 | H230: 16650 | I230: 13420 | J230: 10180 | K230: 7630 | L230: 167400
A232: 186 | B232: 560000 | C232: 563000 | D232: 39930 | E232: 33470 | F232: 27000 | G232: 20530 | H232: 16930 | I232: 13690 | J232: 10460 | K232: 7760 | L232: 169000
A233: 187 | B233: 563000 | C233: 566000 | D233: 40480 | E233: 34020 | F233: 27550 | G233: 21080 | H233: 17200 | I233: 13970 | J233: 10730 | K233: 7900 | L233: 170500
A234: 188 | B234: 566000 | C234: 569000 | D234: 41030 | E234: 34570 | F234: 28100 | G234: 21630 | H234: 17480 | I234: 14240 | J234: 11010 | K234: 8040 | L234: 172000
A235: 189 | B235: 569000 | C235: 572000 | D235: 41590 | E235: 35120 | F235: 28650 | G235: 22190 | H235: 17760 | I235: 14520 | J235: 11280 | K235: 8180 | L235: 173600
A236: 190 | B236: 572000 | C236: 575000 | D236: 42140 | E236: 35670 | F236: 29200 | G236: 22740 | H236: 18030 | I236: 14790 | J236: 11560 | K236: 8330 | L236: 175100
A238: 191 | B238: 575000 | C238: 578000 | D238: 42690 | E238: 36230 | F238: 29750 | G238: 23290 | H238: 18310 | I238: 15070 | J238: 11830 | K238: 8610 | L238: 176600
A239: 192 | B239: 578000 | C239: 581000 | D239: 43240 | E239: 36780 | F239: 30300 | G239: 23840 | H239: 18580 | I239: 15350 | J239: 12110 | K239: 8880 | L239: 178200
... 163 more rows

Sheet 明細書原本
C2: 給与明細書
J3: ●●●● 株式会社
E5: 様
J13: 経理 | K13: 社長
B18: 支給日
C20: 支給額 | D20: 基本給 | F20: 業務手当 | H20: 役職手当 | J20: 夜間作業手当
D21: 通勤手当 | F21: 資格手当 | H21: その他
D22: 合計額
C24: 控除額 | D24: 厚生年金 | F24: 健康保険 | H24: 雇用保険 | J24: 社会保険料計
D25: 課税支給額 | F25: 所得税 | H25: 住民税 | J25: 携帯電話
D26: 合計額
C28: ※備考 | I28: 差引支給額

Sheet 給与計算
B2: 月分 | C2: =C3 -> 2015-06-25 | D2: ←入力しない。
B3: 支給日 | C3: 2015-06-25 | D3: ←入力する。 5/25 と入力する。
A7: 1 | B7: 2 | C7: 3 | D7: 4 | E7: 5 | F7: 6 | G7: 7 | H7: 8 | I7: 9 | J7: 10 | K7: 11 | L7: 12 | M7: 13 | N7: 14 | O7: 15 | P7: 16 | Q7: 17 | R7: 18 | S7: 19 | T7: 20 | U7: 21
B8: 社員名 | C8: 基本給 | D8: 業務手当 | E8: 役職手当 | F8: 夜間作業手当 | G8: 通勤手当 | H8: 資格手当 | I8: その他 | J8: 総支給額 | K8: 厚生年金 | L8: 健康保険 | M8: 雇用保険 | N8: 社保計 | O8: 社会保険控除後の金額 | P8: 扶養数 | Q8: 源泉所得税 | R8: 住民税 | S8: 携帯電話超過分 | T8: 控除計 | U8: 差引支給額 | W8: 時給
A9: 1 | B9: 山田太郎 | J9: =SUM(C9:I9) -> 0 | K9: 54169 | L9: 69877 | N9: =SUM(K9:M9) -> 124046 | O9: =J9-N9 -> -124046 | P9: 1 | Q9: =123520+ROUNDDOWN((O9-1010000)*0.321615,0) -> -241206 | R9: 78400 | S9: 0 | T9: =N9+Q9+R9+S9 -> -38760 | U9: =O9-Q9-R9-S9 -> 38760 | W9: =ROUNDDOWN(J9/20/8,0) -> 0 | X9: =B9 -> 山田太郎
A10: 2 | B10: 野口花子 | J10: =SUM(C10:I10) -> 0 | K10: 26211 | L10: 14955 | M10: =ROUNDDOWN(J10*6/1000,0) -> 0 | N10: =SUM(K10:M10) -> 41166 | O10: =J10-N10 -> -41166 | P10: 0 | Q10: =VLOOKUP(O10,所得税!$B$10:$K$410,給与計算!P10+3,TRUE) ->  | R10: 19700 | S10: 0 | T10: =N10+Q10+R10+S10 ->  | W10: =ROUNDDOWN(J10/20/8,0) -> 0 | X10: =B10 -> 野口花子
A11: 3 | B11: 税務 清 | J11: =SUM(C11:I11) -> 0 | K11: 51548 | L11: 34072 | M11: 0 | N11: 85620 | O11: -85620 | P11: 1 | Q11: =VLOOKUP(O11,所得税!$B$10:$K$410,給与計算!P11+3,TRUE) ->  | R11: 38500 | S11: 0 | T11: =N11+Q11+R11+S11 ->  | W11: 0 | X11: 税務 清
A12: 4 | B12: a | J12: =SUM(C12:I12) -> 0 | K12: 38442 | L12: 25410 | M12: 0 | N12: 63852 | O12: -63852 | P12: 1 | Q12: =VLOOKUP(O12,所得税!$B$10:$K$410,給与計算!P12+3,TRUE) ->  | R12: 24000 | S12: 0 | W12: 0 | X12: a
A13: 5 | B13: b | J13: 0 | K13: 48927 | L13: 32340 | M13: 0 | N13: 81267 | O13: -81267 | P13: 1 | Q13: =VLOOKUP(O13,所得税!$B$10:$K$410,給与計算!P13+3,TRUE) ->  | R13: 29700 | S13: 0 | W13: =ROUNDDOWN(J13/20/8,0) -> 0 | X13: b
A14: 6 | B14: c | J14: 0 | K14: 27958 | L14: 15952 | M14: 0 | N14: 43910 | O14: -43910 | P14: 0 | Q14: =VLOOKUP(O14,所得税!$B$10:$K$410,給与計算!P14+3,TRUE) ->  | R14: 4800 | S14: 0 | W14: 0 | X14: c
A15: 7 | B15: d | J15: 0 | K15: 31453 | L15: 17946 | M15: 0 | N15: 49399 | O15: -49399 | P15: 3 | Q15: =VLOOKUP(O15,所得税!$B$10:$K$410,給与計算!P15+3,TRUE) ->  | R15: 1100 | S15: 0 | W15: 0 | X15: d
A16: 8 | B16: e | J16: 0 | K16: 22716 | L16: 15015 | M16: =ROUNDDOWN(J16*6/1000,0) -> 0 | N16: 37731 | O16: -37731 | P16: 3 | Q16: =VLOOKUP(O16,所得税!$B$10:$K$410,給与計算!P16+3,TRUE) ->  | R16: 2000 | S16: 0 | W16: 0 | X16: e
A17: 9 | B17: f | J17: 0 | K17: 29705 | L17: 19635 | M17: 0 | N17: 49340 | O17: -49340 | P17: 0 | Q17: =VLOOKUP(O17,所得税!$B$10:$K$410,給与計算!P17+3,TRUE) ->  | R17: 16900 | S17: 0 | W17: 0 | X17: f
A18: 10 | B18: g | J18: 0 | K18: 29705 | L18: 16949 | M18: 0 | N18: =SUM(K18:M18) -> 46654 | O18: =J18-N18 -> -46654 | P18: 1 | Q18: =VLOOKUP(O18,所得税!$B$10:$K$410,給与計算!P18+3,TRUE) ->  | R18: 7900 | S18: 0 | W18: 0 | X18: g
A19: 11 | B19: h | J19: 0 | K19: 20968 | L19: 11964 | M19: 0 | N19: 32932 | O19: -32932 | P19: 0 | Q19: =VLOOKUP(O19,所得税!$B$10:$K$410,給与計算!P19+3,TRUE) ->  | R19: 5400 | S19: 0 | U19: =O19-Q19-R19-S19 ->  | W19: 0 | X19: h
A20: 12 | B20: i | J20: 0 | K20: 24463 | L20: 16170 | M20: 0 | N20: 40633 | O20: -40633 | P20: 0 | Q20: =VLOOKUP(O20,所得税!$B$10:$K$410,給与計算!P20+3,TRUE) ->  | R20: 8100 | S20: 0 | W20: 0 | X20: i
A21: 13 | B21: j | J21: 0 | K21: 26211 | L21: 17325 | M21: 0 | N21: 43536 | O21: =J21-N21 -> -43536 | P21: 0 | Q21: =VLOOKUP(O21,所得税!$B$10:$K$410,給与計算!P21+3,TRUE) ->  | R21: 0 | S21: 0 | W21: 0 | X21: j
A22: 14 | B22: k | J22: 0 | K22: 33200 | L22: 21945 | M22: 0 | N22: =SUM(K22:M22) -> 55145 | O22: =J22-N22 -> -55145 | P22: 0 | Q22: =VLOOKUP(O22,所得税!$B$10:$K$410,給与計算!P22+3,TRUE) ->  | R22: 27000 | S22: 0 | T22: =N22+Q22+R22+S22 ->  | W22: 0 | X22: k
A23: 15 | B23: ;l | J23: 0 | K23: 0 | L23: 0 | M23: =ROUNDDOWN(J23*6/1000,0) -> 0 | N23: =SUM(K23:M23) -> 0 | O23: =J23-N23 -> 0 | P23: 0 | Q23: =VLOOKUP(O23,所得税!$B$10:$K$410,給与計算!P23+3,TRUE) ->  | R23: 0 | S23: 0 | W23: 0 | X23: ;l
A24: 16 | B24: m | J24: 0 | M24: =ROUNDDOWN(J24*6/1000,0) -> 0 | N24: =SUM(K24:M24) -> 0 | O24: =J24-N24 -> 0 | Q24: =VLOOKUP(O24,所得税!$B$10:$K$410,給与計算!P24+3,TRUE) ->  | T24: =N24+Q24+R24+S24 ->  | U24: =O24-Q24-R24-S24 ->  | W24: 0 | X24: m
A25: 17 | B25: ○○ | J25: 0 | M25: 0 | N25: 0 | O25: 0 | Q25: =VLOOKUP(O25,所得税!$B$10:$K$410,給与計算!P25+3,TRUE) ->  | W25: 0 | X25: ○○
A26: 18 | B26: ○○○ | J26: 0 | M26: 0 | N26: 0 | O26: 0 | Q26: =VLOOKUP(O26,所得税!$B$10:$K$410,給与計算!P26+3,TRUE) ->  | W26: 0 | X26: ○○○
A27: 19 | B27: ○○○○ | J27: 0 | M27: 0 | N27: 0 | O27: 0 | Q27: =VLOOKUP(O27,所得税!$B$10:$K$410,給与計算!P27+3,TRUE) ->  | W27: 0 | X27: ○○○○
A28: 20 | B28: ○○○○○ | J28: 0 | M28: 0 | N28: 0 | O28: 0 | Q28: =VLOOKUP(O28,所得税!$B$10:$K$410,給与計算!P28+3,TRUE) ->  | W28: 0 | X28: ○○○○○
J29: =SUM(J9:J23) -> 0 | K29: =SUM(K9:K23) -> 465676 | L29: 329555 | M29: 0 | N29: =SUM(N9:N23) -> 795231 | O29: -795231 | R29: 263500 | S29: 0 | W29: 0
E32: ＜手順＞
E33: ①前月のファイルをコピーし、ファイル名を変える。
E34: ②支給日を入力する。
E35: ③青色の部分を入力する。
E36: ④このシートを打ち出し、金額の確認をする。
E37: ⑤明細書作成ボタンをクリックすると、各人の明細が作成される。
E38: ⑥各人の明細書を打ち出す。
E39: ⑦打ち出した明細書の最終確認をする。
